{"text_format":"1","workbook":"xlsx","n_sheets":4,"sheets":["Vsebina","Navodila","Matrični model","CALC"],"not_rendered":{"charts":0,"images":8,"macros":1,"external_links":0,"defined_names":44,"comments":0,"pivot_tables":0},"unopened":[],"bounds":{"document_bytes":16777216,"sheet_cells":100000,"rows_first":2000,"rows_last":500,"rows_between":2000,"halvings":0,"cell_chars":16384,"cell_head_chars":4096},"cells_cut":0,"cells_raw":0,"read":"whole","date_system":"1900"}

{"sheet":"Vsebina","index":0,"n_rows":25,"n_cols":2,"rows_kept":25,"cut":false,"hidden":false,"merged":[]}
[]
[null,"Priloga 1"]
[]
[]
[]
[]
[]
[]
[]
[]
[]
[]
[]
[null,"Vstopne in izstopne \ntarifne postavke omrežnine za prenosni sistem zemeljskega plina v Sloveniji"]
[null,"Poenostavljen tarifni model predstavlja matrični model določitve tarifnih postavk omrežnine in je pripravljen na podlagi (b) točke drugega odstavka 30. člena Uredbe Komisije (EU) 2017/460 z dne 16. marca 2017 o oblikovanju kodeksa omrežja o usklajenih tarifnih strukturah za plin"]
[]
[]
[]
[null,"Vsebina"]
[null,"Določitev vstopnih in izstopnih tarifnih postavk omrežnine po matrični metodi"]
[]
[]
[]
[null,"Datum zadnje spremembe:"]
[null,"2019-03-28"]

{"sheet":"Navodila","index":1,"n_rows":54,"n_cols":2,"rows_kept":54,"cut":false,"hidden":false,"merged":[]}
[]
[]
[null,{"$f":"Vsebina!B20","v":"Določitev vstopnih in izstopnih tarifnih postavk omrežnine po matrični metodi"}]
[]
[null,"Uporabnik ima omogočen poenostavljen izračun vstopnih in izstopnih tarifnih postavk omrežnine za posamezno vstopno oziroma izstopno točko na podlagi vnosa povprečnega dnevnega zakupa v posamezni vstopno oziroma izstopni točki (zeleno obarvana polja)."]
[]
[null,"Pri iskanju ustreznega korekcijskega faktorja vstopnih in izstopnih tarif za dosego pričakovanega ciljnega prihodka se uporablja Excelov dodatek \"Excel Solver\", katerega mora uporabnik predhodno omogočiti (Datoteka → Možnosti → Dodatki  → Excel dodatki → Reševalnik)"]
[]
[null,"Postopek uporabniškega izračuna:"]
[]
[null,"Vnos povprečnega dnevnega zakupa zmogljivosti v posamezni vstopni oziroma izstopni točki , ki ne sme presegati tehnične zmogljivosti posamezne točke prenosnega sistema"]
[]
[]
[]
[]
[]
[]
[]
[]
[]
[]
[]
[]
[]
[null,"Tabela za vnos povprečnega dnevnega zakupa prenosne zmogljivosti v posamezni vstopno / izstopni točki"]
[]
[null,"Aktiviranje Excel dodatka \"Reševalnik\" in nastavljanje ciljnega upravičenega prihodka na strani operaterja prenosnega sistema (upravičen prihodek operaterja prenosnega sistema za leto 2019 znaša 42.001.567 EUR). V primeru da je spremenjen le povprečen dnevni zakup zmogljivosti v posamezni točki, se izvede le ukaz \"Reši\", ki izračuna ustrezen korekcijski faktor - faktor vstopno/izstopnih tarif za dosego pričakovanega ciljnega prihodka in posledično izračun ustreznih vstopnih in izstopnih tarif."]
[]
[]
[]
[]
[]
[]
[]
[]
[]
[]
[]
[]
[]
[]
[]
[]
[]
[]
[]
[]
[]
[]
[]
[]
[]
[]
[null,"Pogovorno okno Excelovega \"Reševalnika\""]

{"sheet":"Matrični model","index":2,"n_rows":86,"n_cols":8,"rows_kept":86,"cut":false,"hidden":false,"merged":[[78,5,79,7],[42,4,42,5],[66,1,68,1],[66,2,66,3],[67,2,68,2],[67,3,68,3],[58,1,59,1],[43,2,44,2],[43,3,44,3],[42,1,44,1],[43,4,44,4],[43,5,44,5],[42,2,42,3],[33,1,34,1],[32,6,32,7],[33,6,34,6],[33,7,34,7]]}
[null,null,null,null,null,null,null,{"$f":"Vsebina!B25","v":"2019-03-28"}]
[null,{"$f":"Vsebina!B14","v":"Vstopne in izstopne \ntarifne postavke omrežnine za prenosni sistem zemeljskega plina v Sloveniji"}]
[]
[null,{"$f":"Vsebina!B20","v":"Določitev vstopnih in izstopnih tarifnih postavk omrežnine po matrični metodi"}]
[]
[]
[]
[]
[null,{"$f":"\"Prenosni sistem zemeljskega plina v Republiki Sloveniji - Vstopno/Izstopne točke in tarife za regulatorno leto 2020\"","v":"Prenosni sistem zemeljskega plina v Republiki Sloveniji - Vstopno/Izstopne točke in tarife za regulatorno leto 2020"}]
[]
[]
[null,"Tabela 1. Pretoki v dnevu vršne obremenitve prenosnega sistema"]
[]
[null,"Odjem zemeljskega plina","Pretok [kWh/dan] "]
[null,"Odjem v točki C (Odsek B-C)",26836766]
[null,"Odjem v točki E (Odsek D-E)",53705604]
[null,"Odjem v točki F (Odsek D-F)",25886804]
[null,"Skupaj",{"$f":"SUM(C15:C17)","v":106429174}]
[]
[null,"Dobava zemeljskega plina",79592408]
[null,"Dobava v točki A (Odsek A-B)",106429174]
[null," Skupaj  ",{"$f":"C21","v":106429174}]
[]
[null,"Opomba:"]
[null,"Pretoki ob vršni obremenitvi na dan 26.2.2018"]
[null,null,null,null,null,"Shema prenosnega sistema porazdeljena po odsekih (na dan 1.1.2019)"]
[]
[null,"Določitev vstopni/Izstopnih tarif prenosnega sistema (Entry-Exit tarif)"]
[]
[null,"Vstopno/Izstopne  (Entry-Exit) tarife - brez upoštevanja korekcijskega faktorja vstopno/izstopnih tarif"]
[]
[]
[null,"Vstopno/Izstopne tarife [EUR/(kWh/dan)]",null,null,null,0.9,"Tehnične zmogljivosti vstopno/izstopnih točk"]
[null,"Vstopno/Izstopne točke","Vstopne tarife ",{"$f":"CALC!D3+CALC!D6","v":8.1826526144911829E-2},{"$f":"C38*$F$33","v":1.9920418653067862E-2},{"$f":"C39*$F$33","v":0.45620840586655909},"Vstopna zmogljivosti\n[kWh/dan]","Izstopna zmogljivosti\n[kWh/dan]"]
[null,null,"Izstopne tarife","Ceršak","Rogatec","Šempeter pri Gorici"]
[null,"Slovenija",{"$f":"CALC!C9","v":0.36452178704898047},{"$f":"D$34+$C36","v":0.44634831319389229},{"$f":"$E$34+C36","v":0.38444220570204835},{"$f":"F$34+$C36","v":0.8207301929155395},0,73643000]
[null,"Ceršak",{"$f":"D34*$F$33","v":7.364387353042065E-2},0,{"$f":"CALC!$F$11+C37","v":7.364387353042065E-2},{"$f":"F$34+$C37","v":0.52985227939697976},139155000,0]
[null,"Rogatec",{"$f":"CALC!C8","v":2.2133798503408735E-2},{"$f":"D$34+$C38","v":0.10396032464832056},0,{"$f":"F$34+$C38","v":0.47834220436996783},7731000,68289000]
[null,"Šempeter pri Gorici",{"$f":"CALC!C10","v":0.50689822874062118},{"$f":"D$34+$C39","v":0.588724754885533},{"$f":"CALC!$F$11+C39","v":0.50689822874062118},0,28316000,25742000]
[]
[]
[]
[null,"Vstopno/Izstopne točke","Povprečen zakup prenosnih zmogljivosti [kWh/dan]",null,"Prihodki iz naslova zakupa prenosnih zmogljivosti [€]"]
[null,null,"Vstopne zmogljivosti \n[kWh/dan]","Izstopne zmogljivosti \n[kWh/dan]","Vstopne zmogljivosti \n[€]","Izstopne zmogljivosti \n[€]"]
[]
[null,"Slovenija",0,53212366,{"$f":"$C$46*C36*F33","v":0},{"$f":"$D$46*C36","v":19397066.747424409}]
[null,"Ceršak",44336352,0,{"$f":"$C$47*D34","v":3627889.666098014},{"$f":"$D$47*C37","v":0}]
[null,"Rogatec",1004773,13427254,{"$f":"$C$48*E34","v":20015.498811298956},{"$f":"$D$48*C38","v":297196.13449008897}]
[null,"Šempeter pri Gorici",1797658,692165,{"$f":"$C$49*F34","v":820106.69047326688},{"$f":"$D$49*C39","v":350857.21249625203}]
[null,"Skupaj",{"$f":"SUM(C46:C49)","v":47138783},{"$f":"SUM(D46:D49)","v":67331785},4468011.8553825803,20045120.094410747]
[null,null,null,null,"Skupni prihodek (nekorigiran)",{"$f":"E50+F50","v":24513131.949793328}]
[null,"Opomba:"]
[null,{"$f":"\"Ne določljive vstopno izstopne tarifne postavke se določijo kot \"&TEXT(F33,\"## %\")&\" vrednosti določljivih tarifnih postavk.\"","v":"Ne določljive vstopno izstopne tarifne postavke se določijo kot 90 % vrednosti določljivih tarifnih postavk."}]
[]
[null,"Vstopno/Izstopne (Entry-Exit) tarife - z upoštevanjem korekcijskega faktorja vstopno/izstopnih tarif"]
[]
[]
[null,"Vstopno/Izstopne tarife [EUR/(kWh/dan)]",null,null,null,0.9]
[null,"Vstopno/Izstopne točke","Vstopne tarife ",{"$f":"D34*D79","v":0.14020412925169856},{"$f":"C63*$F$58","v":3.4132268387350381E-2},{"$f":"C64*$F$58","v":0.78168175181421573}]
[null,null,"Izstopne tarife","Ceršak","Rogatec","Šempeter pri Gorici"]
[null,"Slovenija",{"$f":"C36*$D$79","v":0.62458303137500826},{"$f":"D$59+$C61","v":0.76478716062670682},{"$f":"E$59+$C61","v":0.65871529976235865},{"$f":"F$59+$C61","v":1.4062647831892239}]
[null,"Ceršak",{"$f":"D59*$F$58","v":0.12618371632652872},0,{"$f":"C62+E59","v":0.16031598471387909},{"$f":"C62+F59","v":0.90786546814074442}]
[null,"Rogatec",{"$f":"C38*$D$79","v":3.7924742652611532E-2},{"$f":"D$59+$C63","v":0.17812887190431009},0,{"$f":"$C$63+F59","v":0.81960649446682732}]
[null,"Šempeter pri Gorici",{"$f":"C39*$D$79","v":0.86853527979357303},{"$f":"E$59+$C64","v":0.90266754818092343},{"$f":"C64+E59","v":0.90266754818092343},0]
[]
[]
[null,"Vstopno/Izstopne točke","Prihodki iz naslova zakupa prenosnih zmogljivosti [€]"]
[null,null,"Vstopne zmogljivosti \n[€]","Izstopne zmogljivosti \n[€]"]
[]
[null,"Slovenija",{"$f":"$C$46*C61","v":0},{"$f":"$D$46*C61","v":33235540.862916421}]
[null,"Ceršak",{"$f":"$C$47*D59","v":6216139.6263568038},{"$f":"$D$47*C62","v":0}]
[null,"Rogatec",{"$f":"$C$48*E59","v":34295.181704363204},{"$f":"$D$48*C63","v":509225.15248124878}]
[null,"Šempeter pri Gorici",{"$f":"$C$49*F59","v":1405196.4546028394},{"$f":"$D$49*C64","v":601169.72193831846}]
[null,"Skupaj",{"$f":"SUM(C70:C73)","v":7655631.2626640061},{"$f":"SUM(D70:D73)","v":34345935.737335987}]
[null,null,"Pričakovan ciljni prihodek [€]",{"$f":"C74+D74","v":42001566.999999993}]
[]
[]
[null,null,null,"Korekcijski faktor vstopno/izstopnih tarif za dosego pričakovanega ciljnega prihodka"]
[null,null,"Korekcijski faktor vstopno/izstopnih tarif Kf(EE)",1.7134312778157306]
[]
[null,"Vstopno/Izstopne (Entry-Exit) tarife - Tarifna tabela"]
[]
[null,"tbl_Entry-Exit"]
[null,"Vstopno/izstopne tarife (Entry/Exit tarife) [EUR/(kWh/dan)]","Ceršak","Rogatec","Šempeter pri Gorici","Slovenija"]
[null,"Vstopna (Entry) tarifa",{"$f":"ROUND(D59,5)","v":0.14019999999999999},{"$f":"ROUND(E59,5)","v":3.4130000000000001E-2},{"$f":"ROUND(F59,5)","v":0.78168000000000004},{"$f":"ROUND(AVERAGE(C85:E85),5)","v":0.31867000000000001}]
[null,"Izstopna (Exit) tarifa",{"$f":"ROUND(C62,5)","v":0.12617999999999999},{"$f":"ROUND(C63,5)","v":3.7920000000000002E-2},{"$f":"ROUND(C64,5)","v":0.86853999999999998},{"$f":"ROUND(C61,5)","v":0.62458000000000002}]

{"sheet":"CALC","index":3,"n_rows":12,"n_cols":5,"rows_kept":12,"cut":false,"hidden":true,"merged":[[6,3,6,4]]}
[null,null,null,"  Strošek enote ob vršni obremenitvi \n[EUR/(kWh/dan)]","Pričakovan prihodek \n[EUR]"]
[null,null,null," A do B  "," A do B  "]
[null,"Odsek dostopa do prenosnega sistema","Ceršak",8.1826526144911829E-2,8708729.5888923705]
[null,"Skupaj  ",null," ",8708729.5888923705]
[null,null,"Sistemska vstopna točka"," B  "," B "]
[null,null,"Sistemska vstopna tarifa (Entry tariffs) ",0," "]
[null,"Sistemska izstopna točka",null,"Vstopna + Izstopna"]
[null,"Rogatec",2.2133798503408735E-2,2.2133798503408735E-2,593999.57112713042]
[null,"Slovenija",0.36452178704898047,0.36452178704898047,19576862.744624875]
[null,"Šempeter pri Gorici",0.50689822874062118,0.50689822874062118,13121975.095355628]
[null,"Skupaj  ",null,null,33292837.411107637]
[null," Skupaj  ",null,null,42001567.000000007]